bitfinex-derivatives/quotes_ETHF0:USTF0_20250507
["timestamp","ask_amount","ask_price","bid_price","bid_amount"]
[1746636528285,6.35183,1811.5,1811.4,1.7688]
[1746636528581,6.35183,1811.5,1811.4,2.87275]
[1746636528780,6.35183,1811.5,1811.4,1.7688]
[1746636531277,6.35183,1811.5,1811.4,2.87275]
[1746636531784,6.35183,1811.5,1811.4,1.7688]
[1746636532681,6.35183,1811.5,1811.4,2.48167505]
[1746636532988,6.35183,1811.5,1811.4,3.58562505]
[1746636533186,6.35183,1811.5,1811.4,2.48167505]
[1746636533588,9.55963,1811.5,1811.4,2.48167505]
[1746636534378,9.55963,1811.5,1811.4,3.58562505]
[1746636534688,9.55963,1811.5,1811.4,2.48167505]
[1746636535484,9.55963,1811.5,1811.4,3.58562505]
[1746636535685,9.55963,1811.5,1811.4,2.48167505]
[1746636536087,6.35183,1811.5,1811.4,3.58562505]
[1746636536283,6.35183,1811.5,1811.4,2.48167505]
[1746636537989,6.35183,1811.5,1811.4,0.71287505]
[1746636539691,6.35183,1811.5,1811.4,1.81682505]
[1746636539893,6.35183,1811.5,1811.4,0.71287505]
[1746636540390,6.35183,1811.5,1811.4,2.32197505]
[1746636541195,6.35183,1811.5,1811.4,2.32480133]
[1746636543594,3.6,1811.5,1811.4,3.42875133]
[1746636543895,4.70389,1811.5,1811.4,3.42875133]
[1746636544095,4.70389,1811.5,1811.4,4.34745133]
[1746636545497,4.70389,1811.5,1811.4,3.24350133]
[1746636545797,4.70389,1811.5,1811.4,3.42875133]
[1746636547303,3.6,1811.5,1811.4,3.42875133]
[1746636547494,4.70389,1811.5,1811.4,3.42875133]
[1746636549203,4.70389,1811.5,1811.4,6.63655133]
[1746636549501,3.6,1811.5,1811.4,6.63655133]
[1746636549699,2.46685095,1811.5,1811.4,6.63655133]
[1746636549904,1.10378,1811.8,1811.7,1.10372]
[1746636550198,10.47843,1812.3,1811.8,1.1037]
[1746636550399,1.10357,1812.1,1812.0,1.10353]
[1746636550599,1.10364,1812.0,1811.9,1.10361]
[1746636550799,1.10352,1812.1,1812.0,0.71570133]
[1746636551203,7.23972,1812.1,1812.0,0.71570133]
[1746636551403,7.23972,1812.1,1812.0,2.26667766]
[1746636551796,5.62782,1812.1,1812.0,2.26667766]
[1746636551997,4.70352,1812.1,1812.0,2.26667766]
[1746636552205,3.6,1812.1,1812.0,5.47447766]
[1746636552606,0.83955171,1812.1,1812.0,5.47447766]
[1746636552808,1.10347,1812.2,1812.1,1.10352]
[1746636553008,1.10347,1812.2,1812.1,2.88852]
[1746636553207,4.70347,1812.2,1812.1,3.60422133]
[1746636554009,3.6,1812.2,1812.1,3.60422133]
[1746636554307,4.70346,1812.2,1812.1,3.60422133]
[1746636554504,4.70346,1812.2,1812.1,2.49939448]
[1746636554901,3.6,1812.2,1811.9,1.1036]
[1746636555109,1.10358,1812.0,1811.9,2.02]
[1746636555300,1.10358,1812.0,1811.9,1.63055613]
[1746636555702,2.82488,1812.0,1811.9,1.63055613]
[1746636556109,6.42488,1812.0,1811.9,2.06377877]
[1746636556305,6.42488,1812.0,1811.9,1.63055613]
[1746636557305,4.70358,1812.0,1811.9,1.63055613]
[1746636557807,4.70358,1812.0,1811.9,2.07545059]
[1746636558208,4.70358,1812.0,1811.9,3.17909059]
[1746636558807,4.70358,1812.0,1811.9,2.07545059]
[1746636559612,4.70358,1812.0,1811.9,1.63055613]
[1746636560311,6.43848,1812.0,1811.9,0.71415613]
[1746636561407,4.70358,1812.0,1811.9,1.10364]
[1746636561806,1.10364,1811.9,1811.8,2.00817]
[1746636562111,4.70364,1811.9,1811.8,2.00817]
[1746636562308,4.70364,1811.9,1811.8,2.44104028]
[1746636563199,4.70364,1811.9,1811.8,3.09071159]
[1746636563404,4.70364,1811.9,1811.8,1.7481]
[1746636563608,5.63684,1811.9,1811.8,1.7481]
[1746636564310,5.63684,1811.9,1811.8,2.19313168]
[1746636564810,1.10376,1811.7,1811.6,4.165]
[1746636565011,1.10376,1811.7,1811.6,5.1249]
[1746636565207,4.70376,1811.7,1811.6,5.1249]
[1746636566211,4.70376,1811.7,1811.6,6.22873]
[1746636566413,4.70376,1811.7,1811.6,6.7997]
[1746636567309,4.70376,1811.7,1811.6,7.24468763]
[1746636569312,4.70376,1811.7,1811.6,8.34851763]
[1746636570012,0.83971934,1811.7,1811.6,8.34851763]
[1746636570208,1.10373,1811.8,1811.7,1.10376]
[1746636570406,1.10373,1811.8,1811.7,2.80396]
[1746636571114,4.70373,1811.8,1811.7,2.80396]
[1746636571318,4.70373,1811.8,1811.7,1.7002]
[1746636571917,4.70373,1811.8,1811.7,2.80396]
[1746636573120,4.70373,1811.8,1811.7,1.7002]
[1746636576209,4.70373,1811.8,1811.7,2.41362903]
[1746636580020,3.08637867,1812.2,1811.7,5.62142903]
[1746636580231,1.10361,1812.0,1811.9,4.31139]
[1746636580414,1.10361,1812.0,1811.9,5.98271903]
[1746636580620,1.10361,1812.0,1811.9,5.98424721]
[1746636580817,1.10361,1812.0,1811.9,5.26929]
[1746636581117,1.10356,1812.1,1812.0,1.10355]
[1746636581319,1.10349,1812.2,1812.1,1.10348]
[1746636581514,1.10349,1812.2,1812.1,6.77033398]
[1746636581713,1.10349,1812.2,1812.1,6.770332]
[1746636581915,1.10349,1812.2,1812.1,4.952]
[1746636582122,4.70349,1812.2,1812.1,6.77037133]
[1746636582321,4.70349,1812.2,1812.1,5.66683926]
[1746636582620,4.70349,1812.2,1812.1,5.6668394]
[1746636582823,4.70349,1812.2,1812.1,5.66683808]
[1746636583024,4.70349,1812.2,1812.1,6.77063167]
[1746636583320,4.70349,1812.2,1812.1,6.77063041]
[1746636584129,4.70349,1812.2,1812.1,6.7706266]
[1746636584620,4.70349,1812.2,1812.1,6.05552]
[1746636584821,4.70349,1812.2,1812.1,6.77062696]
[1746636585023,4.70349,1812.2,1812.1,5.6671066]
[1746636585214,4.70349,1812.2,1812.1,5.66711814]
[1746636585626,4.70349,1812.2,1812.1,6.77078007]
[1746636585926,4.70349,1812.2,1812.1,4.952]
[1746636586625,4.70349,1812.2,1812.1,6.05552]
[1746636588726,3.6,1812.2,1812.1,6.05552]
[1746636589024,4.70346,1812.2,1812.1,6.05552]
[1746636589631,4.70346,1812.2,1812.1,33.35552]
[1746636590126,3.6,1812.2,1812.1,33.35552]
[1746636592633,3.6,1812.2,1812.1,37.84152]
[1746636592830,4.70346,1812.2,1812.1,10.54152]
[1746636593327,3.6,1812.2,1812.1,10.54152]
[1746636593825,4.70346,1812.2,1812.1,10.54152]
[1746636594027,3.6,1812.2,1812.1,10.54152]
[1746636594223,4.70346,1812.2,1812.1,10.54152]
[1746636594831,3.6,1812.2,1812.1,10.54152]
[1746636595633,4.70346,1812.2,1812.1,10.54152]
[1746636599729,4.70346,1812.2,1812.1,8.04924517]
[1746636600933,3.6,1812.2,1812.1,11.25704517]
[1746636601137,3.6,1812.2,1812.1,8.04924517]
[1746636601326,3.6,1812.2,1812.1,11.25704517]
[1746636601525,13.58303806,1813.0,1812.4,2.75829]
[1746636601838,13.58303806,1813.0,1812.7,1.10309]
[1746636601839,2.78434,1812.8,1812.7,1.10309]
[1746636602035,2.78434,1812.8,1812.7,1.81861517]
[1746636602331,2.78434,1812.8,1812.7,0.71552517]
[1746636602332,11.38434,1812.8,1812.7,0.71552517]
[1746636602536,1.10322,1812.6,1812.5,1.10323]
[1746636602932,2.78441,1812.7,1812.6,1.10322]
[1746636603143,3.6,1812.8,1812.6,1.10322]
[1746636603144,9.09703806,1813.1,1812.6,6.67961226]
[1746636603340,1.05102334,1813.0,1812.9,1.10303]
[1746636603729,9.09703806,1813.1,1813.0,1.10297]
[1746636603730,11.88120806,1813.1,1813.0,1.10297]
[1746636604137,15.48120806,1813.1,1813.0,1.10297]
[1746636604638,15.48114806,1813.1,1813.0,1.10297]
[1746636604836,14.37823806,1813.1,1812.9,2.78021]
[1746636605135,1.10307,1812.9,1812.7,6.5815]
[1746636605332,2.6959,1812.8,1812.7,9.84381846]
[1746636605937,3.6967,1812.8,1812.7,8.77031846]
[1746636606138,7.2967,1812.8,1812.7,7.74731846]
[1746636606334,8.3998,1812.8,1812.7,7.74731846]
[1746636606633,8.3998,1812.8,1812.7,4.90795846]
[1746636606838,8.3998,1812.8,1812.7,6.01111846]
[1746636607239,8.3998,1812.8,1812.7,4.90795846]
[1746636607539,8.3998,1812.8,1812.7,0.42295846]
[1746636607732,1.10316,1812.7,1812.6,6.04716]
[1746636607933,2.80596,1812.7,1812.6,3.2078]
[1746636608135,6.40596,1812.7,1812.6,3.2078]
[1746636608435,1.10328,1812.5,1812.4,6.02699]
[1746636608833,1.10328,1812.5,1812.4,6.74146442]
[1746636609235,4.70328,1812.5,1812.4,6.74146442]
[1746636609544,4.70328,1812.5,1812.4,5.63817442]
[1746636609742,5.72888,1812.5,1812.4,3.92227442]
[1746636610039,5.72888,1812.5,1812.4,3.2078]
[1746636610941,1.1034,1812.3,1812.2,6.43992644]
[1746636611340,1.1034,1812.3,1812.2,7.15430926]
[1746636612142,4.7034,1812.3,1812.2,7.15430926]
[1746636613143,4.7034,1812.3,1812.2,0.71438282]
[1746636613342,6.4193,1812.3,1812.2,0.71438282]
[1746636613539,1.10352,1812.1,1812.0,4.31135]
[1746636613741,1.10352,1812.1,1812.0,6.77507947]
[1746636614244,6.35682,1812.1,1812.0,6.77507947]
[1746636614438,6.35682,1812.1,1812.0,5.67152947]
[1746636614638,6.35682,1812.1,1812.0,0.71422947]
[1746636614639,11.35682,1812.1,1812.0,0.71422947]
[1746636614838,6.35682,1812.1,1812.0,0.71422947]
[1746636615038,6.35682,1812.1,1812.0,1.81780947]
[1746636615439,1.10364,1812.0,1811.9,1.10359]
[1746636615741,3.76494,1812.0,1811.9,0.71367297]
[1746636616239,7.36494,1812.0,1811.9,0.71367297]
[1746636616443,7.36494,1812.0,1811.9,1.14324415]
[1746636616844,1.10364,1811.9,1811.7,4.68857347]
[1746636617137,1.10364,1811.9,1811.8,0.42939643]
[1746636617138,7.34874,1811.9,1811.8,0.42939643]
[1746636617346,7.34874,1811.9,1811.8,1.14284894]
[1746636617738,7.34874,1811.9,1811.8,0.42939643]
[1746636617939,12.34874,1811.9,1811.8,0.42939643]
[1746636618338,7.34874,1811.9,1811.8,0.42939643]
[1746636618747,1.10383,1811.6,1811.5,3.26447351]
[1746636618947,1.10383,1811.6,1811.5,4.40007322]
[1746636619145,4.70383,1811.6,1811.5,4.40007389]
[1746636619447,4.70383,1811.6,1811.5,3.68702085]
[1746636619649,4.70383,1811.6,1811.5,4.40007787]
[1746636620250,4.70383,1811.6,1811.5,3.97753053]
[1746636620447,3.6,1811.6,1811.5,4.39906629]
[1746636620752,4.70383,1811.6,1811.5,4.39906629]
[1746636622656,3.6,1811.6,1811.5,4.39879491]
[1746636622846,4.70383,1811.6,1811.5,4.39879491]
[1746636623549,3.6,1811.6,1811.5,4.39879491]
[1746636623752,4.70383,1811.6,1811.5,4.39879491]
[1746636624151,4.70383,1811.6,1811.5,4.39866396]
[1746636625055,3.6,1811.6,1811.5,4.39866396]
[1746636625666,4.70383,1811.6,1811.5,4.39866396]
[1746636625867,4.70383,1811.6,1811.5,4.39846709]
[1746636626966,4.70383,1811.6,1811.5,3.97753053]
[1746636627267,4.70383,1811.6,1811.5,4.39838465]
[1746636627462,4.70383,1811.6,1811.5,3.68532763]
[1746636628266,4.70383,1811.6,1811.5,4.39684605]
[1746636628562,4.70383,1811.6,1811.5,4.39677333]
[1746636630365,4.70383,1811.6,1811.5,4.39670864]
[1746636630569,4.70383,1811.6,1811.5,4.39671235]
[1746636630768,1.10369,1811.9,1811.8,1.10364]
[1746636630956,1.10369,1811.9,1811.8,0.42072042]
[1746636631160,4.70369,1811.9,1811.8,1.52442042]
[1746636631362,4.70369,1811.9,1811.8,4.21002042]
[1746636631663,1.7311,1812.1,1811.9,1.10358]
[1746636631867,1.10352,1812.1,1812.0,3.15388042]
[1746636632065,1.10352,1812.1,1812.0,5.25812042]
[1746636632267,4.70352,1812.1,1812.0,5.25812042]
[1746636632566,4.70352,1812.1,1812.0,5.25819093]
[1746636632767,4.70352,1812.1,1812.0,4.8374]
[1746636632970,4.70352,1812.1,1812.0,2.05041218]
[1746636633163,6.36402,1812.1,1812.0,0.42081218]
[1746636634362,1.10358,1812.0,1811.9,2.73324]
[1746636634564,1.10358,1812.0,1811.9,3.15414678]
[1746636634959,4.70358,1812.1,1812.0,1.10358]
[1746636635164,4.70358,1812.1,1812.0,4.26418678]
[1746636635567,4.70358,1812.1,1812.0,3.87236091]
[1746636635971,4.70358,1812.1,1812.0,3.16060678]
[1746636636369,4.70358,1812.1,1812.0,3.16189744]
[1746636636570,4.70358,1812.1,1812.0,4.26547744]
[1746636636765,4.70358,1812.1,1812.0,3.87491107]
[1746636636965,4.70358,1812.1,1812.0,3.8751719]
[1746636637571,4.70358,1812.1,1812.0,3.45271363]
[1746636637769,4.70358,1812.1,1812.0,3.87531261]
[1746636637973,4.70358,1812.1,1812.0,4.55629363]
[1746636638375,4.70358,1812.1,1812.0,2.45721363]
[1746636638677,6.33448,1812.1,1812.0,2.87998302]
[1746636638967,4.70358,1812.1,1812.0,3.56079363]
[1746636639171,3.6,1812.1,1812.0,3.56079363]
[1746636639371,3.6,1812.1,1812.0,3.98369122]
[1746636639580,1.10346,1812.3,1812.2,1.10346]
[1746636639768,1.10346,1812.3,1812.2,1.52635537]
[1746636639969,1.10338,1812.4,1812.3,1.10334]
[1746636640169,1.10338,1812.4,1812.3,4.925349]
[1746636640369,1.10338,1812.4,1812.3,3.822009]
[1746636641078,4.70338,1812.4,1812.3,3.822009]
[1746636641378,4.70338,1812.4,1812.3,4.925409]
[1746636643480,4.70338,1812.4,1812.3,3.822009]
[1746636643980,4.70338,1812.4,1812.3,2.784509]
[1746636644174,4.70338,1812.4,1812.3,1.135909]
[1746636644372,4.70338,1812.4,1812.3,0.42289537]
[1746636645278,6.47688,1812.4,1812.3,0.42289537]
[1746636645875,1.10321,1812.7,1812.6,1.10319]
[1746636646082,0.45733869,1812.7,1812.6,1.52608537]
[1746636646378,4.05733869,1812.7,1812.6,1.52608537]
[1746636646683,4.05733869,1812.7,1812.6,2.2386631]
[1746636647275,4.05733869,1812.7,1812.6,1.13536766]
[1746636647483,4.05733869,1812.7,1812.6,2.23858766]
[1746636648983,3.6,1812.7,1812.6,3.88848766]
[1746636649376,1.10301,1813.0,1812.9,1.10303]
[1746636649580,1.10301,1813.0,1812.9,1.52581993]
[1746636649975,1.10301,1813.0,1812.9,3.17571993]
[1746636650183,4.70301,1813.0,1812.9,3.17571993]
[1746636651283,4.70301,1813.0,1812.9,3.61924652]
[1746636651482,3.6,1813.0,1812.9,6.82704652]
[1746636651877,4.70297,1813.0,1812.9,6.82704652]
[1746636652385,3.6,1813.0,1812.9,6.82642088]
[1746636652686,3.6,1813.0,1812.9,12.01913196]
[1746636653385,0.8458939,1813.0,1812.9,17.01899017]
[1746636654073,1.10286,1813.2,1813.1,1.10291]
[1746636654280,1.10286,1813.2,1813.1,1.5249325]
[1746636654679,1.10286,1813.2,1813.1,3.2595325]
[1746636655077,3.6,1813.2,1813.1,3.2595325]
[1746636655277,3.6,1813.2,1813.1,6.4673325]
[1746636655972,4.70285,1813.2,1813.1,6.4673325]
[1746636656683,3.6,1813.2,1813.1,6.4673325]
[1746636656881,4.70285,1813.2,1813.1,6.4673325]
[1746636657077,4.70285,1813.2,1813.1,6.46702462]
[1746636657384,3.6,1813.2,1813.1,6.46702462]
[1746636657584,3.6,1813.2,1813.1,7.1779386]
[1746636658486,4.70285,1813.2,1813.1,7.1779386]
[1746636658685,4.70285,1813.2,1813.1,6.46702462]
[1746636658885,4.70285,1813.2,1813.1,6.88412567]
[1746636659084,4.70285,1813.2,1813.1,6.88409986]
[1746636659586,4.70285,1813.2,1813.1,5.36408881]
[1746636659778,4.70285,1813.2,1813.1,6.46699881]
[1746636660279,4.70285,1813.2,1813.1,5.36408881]
[1746636660479,4.70285,1813.2,1813.1,2.15628881]
[1746636660679,1.10297,1813.0,1812.9,1.54651659]
[1746636660884,1.10297,1813.0,1812.9,3.70579333]
[1746636661086,4.70297,1813.0,1812.9,3.70579333]
[1746636661289,6.44407,1813.0,1812.9,3.70579333]
[1746636661789,6.44407,1813.0,1812.9,3.26226674]
[1746636662088,6.44407,1813.0,1812.9,2.15927674]
[1746636662286,6.44407,1813.0,1812.9,2.1592071]
[1746636662990,6.44407,1813.0,1812.9,0.4218071]
[1746636663377,1.10303,1812.9,1812.7,0.43273625]
[1746636663578,2.2,1812.8,1812.7,1.717]
[1746636663882,2.2,1812.8,1812.7,0.42205387]
[1746636664080,1.10316,1812.7,1812.6,2.8202]
[1746636664289,2.87776,1812.7,1812.6,3.24219986]
[1746636664786,2.87776,1812.7,1812.6,0.42199986]
[1746636665084,7.58166,1812.7,1812.6,0.42199986]
[1746636665483,1.10328,1812.5,1812.4,1.717]
[1746636665792,1.10334,1812.4,1812.3,4.3112]
[1746636666087,1.1034,1812.3,1812.2,1.6224]
[1746636666279,1.1034,1812.3,1812.2,2.04453565]
[1746636666891,2.875,1812.3,1812.2,2.04453565]
[1746636667090,6.475,1812.3,1812.2,2.04453565]
[1746636667295,6.475,1812.3,1812.2,1.6224]
[1746636667485,6.475,1812.3,1812.2,2.04478926]
[1746636667685,6.475,1812.3,1812.2,2.04478979]
[1746636669092,13.13013,1812.3,1811.8,9.05310739]
[1746636669394,1.10364,1811.9,1811.8,9.05310739]
[1746636669693,1.10364,1811.9,1811.8,10.73920739]
[1746636670095,1.10364,1811.9,1811.8,12.55478947]
[1746636670295,4.70364,1811.9,1811.8,12.55478947]
[1746636670595,4.70364,1811.9,1811.8,10.73920739]
[1746636671786,4.70364,1811.9,1811.8,1.6861]
[1746636673491,4.70364,1811.9,1811.8,2.7898]
[1746636675093,4.70364,1811.9,1811.8,1.6861]
[1746636675601,4.70364,1811.9,1811.8,2.7898]
[1746636675994,4.70364,1811.9,1811.8,1.6861]
[1746636677295,5.75644,1811.9,1811.8,1.6861]
[1746636677802,1.1037,1811.8,1811.7,3.2078]
[1746636678001,1.1037,1811.8,1811.6,2.76892]
[1746636678002,1.10376,1811.7,1811.6,2.76892]
[1746636678206,1.10383,1811.6,1811.5,3.13364]
[1746636678897,1.10389,1811.5,1811.4,4.75018993]
[1746636679200,4.70389,1811.5,1811.4,4.75018993]
[1746636680094,3.6,1811.5,1811.4,4.75018993]
[1746636680297,4.70389,1811.5,1811.4,4.75018993]
[1746636681103,4.70389,1811.5,1811.4,5.15679532]
[1746636681600,4.70389,1811.5,1811.4,3.64627993]
[1746636681801,1.10395,1811.4,1811.3,2.0298]
[1746636682200,4.70395,1811.4,1811.3,2.0298]
[1746636684305,4.70395,1811.4,1811.2,0.44843637]
[1746636684306,1.10401,1811.3,1811.2,0.44843637]
[1746636684498,1.10401,1811.3,1811.0,3.62363166]
[1746636684499,2.76007,1811.3,1811.0,3.2078]
[1746636684701,1.10413,1811.1,1811.0,6.38604]
[1746636684898,1.10413,1811.1,1811.0,5.2819]
[1746636685103,4.70413,1811.1,1811.0,5.2819]
[1746636686101,4.70413,1811.1,1811.0,2.0741]
[1746636686799,1.10431,1810.8,1810.7,9.85692487]
[1746636686999,1.10431,1810.8,1810.7,3.52447885]
[1746636687204,4.70431,1810.8,1810.7,2.0139]
[1746636687907,4.70431,1810.8,1810.7,3.11827]
[1746636688107,3.6,1810.8,1810.7,3.11827]
[1746636688408,3.6,1810.8,1810.7,3.5247138]
[1746636688612,4.70431,1810.8,1810.7,3.52472042]
[1746636689510,3.6,1810.8,1810.7,3.52472042]
[1746636689912,4.70431,1810.8,1810.7,3.52472042]
[1746636690110,4.70431,1810.8,1810.7,3.52673441]
[1746636692011,3.6,1810.8,1810.7,5.27096598]
[1746636692206,4.70431,1810.8,1810.7,5.27096598]
[1746636692601,4.70431,1810.8,1810.7,4.86347]
[1746636692802,3.6,1810.8,1810.7,5.2711553]
[1746636693006,4.70431,1810.8,1810.7,5.27115665]
[1746636693306,3.6,1810.8,1810.7,5.27115596]
[1746636693713,3.6,1810.8,1810.7,5.27137278]
[1746636694113,1.10431,1810.8,1810.7,5.27137278]
[1746636694611,1.1043,1810.9,1810.8,1.10425]
[1746636694813,1.1043,1810.9,1810.8,1.51215278]
[1746636695111,4.7043,1810.9,1810.8,1.51215278]
[1746636695615,4.7043,1810.9,1810.8,1.51246438]
[1746636696417,4.7043,1810.9,1810.8,0.40821438]
[1746636697220,4.7043,1810.9,1810.8,1.51252438]
[1746636697517,4.7043,1810.9,1810.8,1.51352099]
[1746636698615,4.7043,1810.9,1810.8,2.22446954]
[1746636699419,4.7043,1810.9,1810.8,5.43253443]
[1746636699620,4.7043,1810.9,1810.8,5.43260278]
[1746636699820,4.7043,1810.9,1810.8,2.22480278]
[1746636700918,3.6,1810.9,1810.8,5.43260278]
[1746636701221,1.10401,1811.4,1811.3,1.10395]
[1746636701408,1.10401,1811.4,1811.3,1.51353636]
[1746636702222,4.70401,1811.4,1811.3,1.51353636]
[1746636702724,3.6,1811.4,1811.3,1.51353636]
[1746636703022,3.6,1811.4,1811.3,1.51374986]
[1746636703717,3.6,1811.4,1811.3,2.22555205]
[1746636703924,4.70395,1811.4,1811.3,2.22555205]
[1746636704111,4.70395,1811.4,1811.3,2.22568215]
[1746636704317,4.70395,1811.4,1811.3,1.81575219]
[1746636704518,3.6,1811.4,1811.3,2.22568212]
[1746636706021,0.83796582,1811.4,1811.3,2.22568212]
[1746636706227,1.10377,1811.7,1811.6,1.10383]
[1746636706428,1.10377,1811.7,1811.6,2.2269141]
[1746636707127,1.10377,1811.7,1811.6,2.1722841]
[1746636707332,4.70377,1811.7,1811.6,0.71180219]
[1746636707528,1.10389,1811.5,1811.4,4.31172]
[1746636708225,1.10389,1811.6,1811.5,1.10385]
[1746636708422,1.10389,1811.6,1811.5,1.81732823]
[1746636709329,4.70389,1811.6,1811.5,1.81732823]
[1746636711934,4.70389,1811.6,1811.5,3.55512823]
[1746636713033,4.70389,1811.6,1811.5,2.45127823]
[1746636713734,6.38029,1811.6,1811.5,2.45127823]
[1746636714135,4.70389,1811.6,1811.5,3.55516823]
[1746636715329,4.70389,1811.6,1811.5,2.45127823]
[1746636716435,3.6,1811.6,1811.5,3.55516823]
[1746636716638,4.70383,1811.6,1811.5,3.55516823]
[1746636717729,4.70383,1811.6,1811.5,2.45127823]
[1746636718325,4.70383,1811.6,1811.5,3.55516823]
[1746636718830,4.70383,1811.6,1811.5,1.7378]
[1746636719137,4.70383,1811.6,1811.5,2.84169]
[1746636719938,4.70383,1811.6,1811.5,1.7378]
[1746636720539,1.10395,1811.4,1811.3,7.66168]
[1746636720837,1.10395,1811.4,1811.3,8.37458724]
[1746636721139,4.70395,1811.4,1811.3,8.37458724]
[1746636721834,4.70395,1811.4,1811.3,10.12628724]
[1746636722540,3.6,1811.4,1811.3,10.12628724]
[1746636722743,4.70395,1811.4,1811.3,10.12628724]
[1746636724643,3.6,1811.4,1811.3,10.12628724]
[1746636725037,0.83903345,1811.4,1811.3,10.12628724]
[1746636725233,1.10387,1811.6,1811.5,1.10389]
[1746636725442,1.10387,1811.6,1811.5,1.81679724]
[1746636725938,1.10387,1811.6,1811.5,0.71290724]
[1746636726246,7.47597,1811.6,1811.5,0.71290724]
[1746636726541,7.47597,1811.6,1811.5,1.81679724]
[1746636726742,7.47597,1811.6,1811.5,3.49219724]
[1746636727137,4.70387,1811.6,1811.5,3.49219724]
[1746636727334,3.6,1811.6,1811.5,3.49219724]
[1746636729245,1.10382,1811.7,1811.6,1.10383]
[1746636729442,1.10382,1811.7,1811.6,2.10073]
[1746636729838,1.10376,1811.8,1811.7,1.10376]
[1746636730038,1.10376,1811.8,1811.7,2.09806]
[1746636730238,4.70376,1811.8,1811.7,2.81096724]
[1746636730742,3.6,1811.8,1811.7,2.81096724]
[1746636732348,3.6,1811.8,1811.7,3.24431563]
[1746636733445,1.0594,1812.3,1812.1,1.10346]
[1746636733643,1.0594,1812.3,1811.7,12.13027563]
[1746636733644,4.99144,1812.3,1812.2,1.10346]
[1746636733857,3.25234,1812.3,1812.2,2.2264015]
[1746636734149,1.10338,1812.4,1812.3,1.10336]
[1746636734350,1.10338,1812.4,1812.3,1.93602568]
[1746636734541,1.10338,1812.4,1812.3,2.64893292]
[1746636734739,11.93945806,1812.5,1812.4,1.10334]
[1746636734939,11.93945806,1812.5,1812.4,1.51337426]
[1746636734940,9.09703806,1812.5,1812.4,1.51337426]
[1746636735144,12.69703806,1812.5,1812.4,2.2262815]
[1746636735347,3.6,1812.5,1812.4,2.2262815]
[1746636735547,3.6,1812.5,1812.4,2.22475145]
[1746636735749,3.6,1812.5,1812.4,2.65451797]
[1746636736350,4.70328,1812.5,1812.4,3.64911797]
[1746636736756,3.6,1812.5,1812.4,3.64911797]
[1746636737556,3.6,1812.5,1812.4,3.64750827]
[1746636738950,0.84061811,1812.5,1812.4,3.64750827]
[1746636740158,3.2078,1812.7,1812.6,1.10322]
[1746636740359,3.2078,1812.7,1812.6,1.51011451]
[1746636741058,3.2078,1812.7,1812.6,1.50950963]
[1746636741258,6.8078,1812.7,1812.6,1.50950963]
[1746636741562,7.91096,1812.7,1812.6,1.50950963]
[1746636741957,9.61786,1812.7,1812.6,3.17260963]
[1746636742158,8.5147,1812.7,1812.6,3.17260963]
[1746636742365,9.61786,1812.7,1812.6,3.17260963]
[1746636742867,1.10334,1812.4,1812.3,5.99699142]
[1746636743065,1.10334,1812.4,1812.3,3.59504536]
[1746636743266,4.70334,1812.4,1812.3,4.30777383]
[1746636743466,4.70334,1812.4,1812.3,3.59504536]
[1746636743663,5.76694,1812.4,1812.3,4.03575098]
[1746636744469,5.76694,1812.4,1812.3,2.49168536]
[1746636744668,7.52364,1812.4,1812.3,2.49147529]
[1746636745168,7.52364,1812.4,1812.3,0.42263142]
[1746636745369,1.10346,1812.2,1812.1,35.59507]
[1746636745661,1.10346,1812.2,1812.1,2.07356773]
[1746636746063,2.86016,1812.2,1812.1,0.40576773]
[1746636746268,6.46016,1812.2,1812.1,0.40576773]
[1746636746561,1.10352,1812.1,1812.0,3.21951238]
[1746636746866,2.86022,1812.1,1812.0,3.62527374]
[1746636747263,6.46022,1812.1,1812.0,3.62527374]
[1746636747966,4.70352,1812.1,1812.0,3.62527374]
[1746636748168,3.6,1812.1,1812.0,3.62527374]
[1746636748369,4.70352,1812.1,1812.0,3.62523422]
[1746636748570,3.6,1812.1,1812.0,3.62523422]
[1746636748970,3.6,1812.1,1812.0,6.83303422]
[1746636749272,0.84023734,1812.1,1812.0,7.96756956]
[1746636749570,1.1034,1812.3,1812.2,1.10346]
[1746636749771,1.1034,1812.3,1812.2,4.71698184]
[1746636750072,5.56827,1812.6,1812.5,1.10328]
[1746636750270,1.10327,1812.6,1812.5,1.509096]
[1746636750773,1.10327,1812.6,1812.5,1.50918527]
[1746636751073,7.04649,1812.7,1812.6,1.10322]
[1746636751372,4.31099,1812.7,1812.6,3.14782527]
[1746636751766,3.2078,1812.7,1812.6,3.14782527]
[1746636752177,6.8078,1812.7,1812.6,3.14782527]
[1746636753477,7.91096,1812.7,1812.6,3.14782527]
[1746636753678,7.91096,1812.7,1812.6,3.86091274]
[1746636753875,7.91096,1812.7,1812.6,3.45500747]
[1746636754070,7.91096,1812.7,1812.6,3.86113307]
[1746636754378,6.8078,1812.7,1812.6,3.86127282]
[1746636754877,5.6878,1812.7,1812.6,3.86127282]
[1746636755478,6.79096,1812.7,1812.6,3.86133464]
[1746636755978,5.6878,1812.7,1812.6,3.14824717]
[1746636756386,6.79096,1812.7,1812.6,3.14824717]
[1746636757078,6.79096,1812.7,1812.6,3.86181355]
[1746636757280,6.79096,1812.7,1812.6,3.8619277]
[1746636759281,6.79096,1812.7,1812.6,3.86217918]
[1746636759885,5.76386,1812.7,1812.6,3.86234653]
[1746636760387,5.76386,1812.7,1812.6,3.86252496]
[1746636760589,5.76386,1812.7,1812.6,3.8625078]
[1746636761184,5.76386,1812.7,1812.6,3.86250787]
[1746636762892,5.76386,1812.7,1812.6,3.8628369]
[1746636765995,3.6,1812.7,1812.6,3.8628369]
[1746636766187,0.84061811,1812.7,1812.6,4.9386369]
[1746636766889,0.84061811,1812.7,1812.6,4.93896181]
[1746636767492,1.94377811,1812.7,1812.6,4.93896181]
[1746636767894,0.84061811,1812.7,1812.6,4.93896181]
[1746636768594,1.94377811,1812.7,1812.6,4.93896181]